bitfinex-derivatives/quotes_ETHF0:USTF0_20250701
["timestamp","ask_amount","ask_price","bid_price","bid_amount"]
[1751355241408,8.06696164,2466.8,2466.7,3.2078]
[1751355242009,7.25640164,2466.8,2466.4,3.2078]
[1751355242209,4.6426,2467.0,2466.4,3.2078]
[1751355242210,0.81066,2466.6,2466.4,3.2078]
[1751355242605,8.06706164,2466.5,2466.4,3.2078]
[1751355242807,8.56870164,2466.5,2466.0,3.2078]
[1751355243008,4.84321527,2466.2,2466.1,1.51939659]
[1751355243313,4.03245527,2466.2,2466.1,1.51939659]
[1751355243510,3.22394637,2466.2,2466.1,1.51939659]
[1751355243910,4.03470637,2466.2,2466.1,1.51939659]
[1751355244112,3.22394637,2466.2,2466.1,1.51939659]
[1751355244508,4.03470637,2466.2,2466.1,9.82867259]
[1751355245509,4.03470637,2466.2,2466.1,8.309276]
[1751355247314,8.06716164,2466.2,2466.1,8.309276]
[1751355252014,8.06716164,2466.2,2466.1,9.82746937]
[1751355252215,8.06716164,2466.2,2466.1,11.0284121]
[1751355252414,8.06716164,2466.2,2466.1,12.24433647]
[1751355253018,4.03470637,2466.2,2466.1,12.24433647]
[1751355253321,4.03470637,2466.2,2466.1,9.82746937]
[1751355254321,4.03470637,2466.2,2466.1,11.42688968]
[1751355256021,4.03470637,2466.2,2466.1,11.02676734]
[1751355256324,4.03470637,2466.2,2466.1,9.82746937]
[1751355257121,4.03470637,2466.2,2466.1,8.309276]
[1751355257719,8.06716164,2466.2,2466.1,8.309276]
[1751355258328,0.81089,2465.8,2465.7,3.2078]
[1751355258518,4.84334527,2465.8,2465.7,3.2078]
[1751355258723,8.06729164,2465.8,2465.7,3.2078]
[1751355259020,2.02666,2466.5,2465.7,5.81092]
[1751355259225,3.2078,2466.6,2466.2,0.81074]
[1751355259420,0.81066,2466.5,2466.4,0.81069]
[1751355260123,0.81066,2466.5,2466.4,0.81068]
[1751355261134,0.81066,2466.5,2466.1,14.78692367]
[1751355261135,7.25640164,2466.5,2466.1,8.309276]
[1751355261336,4.01845,2466.6,2466.1,10.336256]
[1751355261533,4.03460637,2466.5,2466.4,0.81069]
[1751355261936,0.81066,2466.5,2466.4,0.81069]
[1751355262136,0.81069,2466.4,2466.3,0.8107]
[1751355262337,4.03462637,2466.5,2466.4,0.81069]
[1751355262738,0.81068,2466.5,2466.4,0.81069]
[1751355262937,0.81068,2466.5,2466.4,2.36964733]
[1751355263135,4.03462637,2466.5,2466.4,1.55895733]
[1751355263333,8.06708164,2466.5,2466.4,1.55895733]
[1751355263540,9.50458164,2466.5,2466.4,1.55895733]
[1751355264839,8.69390164,2466.5,2466.4,1.56104823]
[1751355265138,9.50458164,2466.5,2466.4,9.87032423]
[1751355266343,9.50458164,2466.5,2466.4,11.88583921]
[1751355266543,9.50458164,2466.5,2466.4,11.07514921]
[1751355267041,9.50458164,2466.5,2466.4,11.88583921]
[1751355267642,9.50458164,2466.5,2466.4,11.07514921]
[1751355270842,69.19283,2467.5,2466.4,11.07514921]
[1751355270843,5.65852623,2468.2,2466.4,122.79957272]
[1751355271050,0.81018,2468.0,2467.6,3.2078]
[1751355271344,18.08802,2468.3,2467.6,4.01808]
[1751355271546,16.0628,2468.3,2467.6,3.2078]
[1751355271747,40.513,2468.2,2467.6,3.2078]
[1751355271937,4.01801,2467.9,2467.4,1.4007]
[1751355272243,0.81018,2468.0,2467.7,0.81025]
[1751355272443,0.8102,2467.9,2467.7,0.81025]
[1751355272748,0.81021,2467.9,2467.7,0.81025]
[1751355272948,43.7148,2468.2,2467.8,0.81022]
[1751355273151,43.7258,2468.2,2467.9,0.81019]
[1751355273351,0.81013,2468.1,2467.9,0.81019]
[1751355273548,0.81015,2468.1,2467.8,0.8102]
[1751355273748,0.81017,2468.0,2467.8,0.8102]
[1751355274047,43.7178,2468.2,2467.6,1.4007]
[1751355274244,0.81021,2467.9,2467.7,0.81026]
[1751355274644,0.81018,2468.0,2467.8,0.81023]
[1751355275146,0.81016,2468.1,2467.9,8.309276]
[1751355275549,0.81017,2468.0,2467.9,8.309276]
[1751355276146,3.2078,2468.2,2467.9,8.309276]
[1751355276147,0.81015,2468.1,2467.9,8.309276]
[1751355276450,0.81017,2468.0,2467.9,8.309276]
[1751355281646,0.81017,2468.0,2467.9,9.82236545]
[1751355281847,5.26084767,2468.0,2467.9,9.82236545]
[1751355282046,5.26084767,2468.0,2467.9,6.64319971]
[1751355282250,11.59524767,2468.0,2467.9,6.64319971]
[1751355282650,11.59524767,2468.0,2467.9,5.13015542]
[1751355283750,11.59524767,2468.0,2467.9,3.40215542]
[1751355283956,7.14457,2468.0,2467.9,3.40215542]
[1751355284155,47.39057,2468.0,2467.9,2.58262542]
[1751355285755,7.14457,2468.0,2467.9,2.58262542]
[1751355285956,47.38357,2468.0,2467.9,2.58262542]
[1751355286757,88.18357,2468.0,2467.9,2.58262542]
[1751355287060,88.14657,2468.0,2467.9,2.58262542]
[1751355287458,88.14657,2468.0,2467.9,0.69796542]
[1751355287660,88.11157,2468.0,2467.9,0.69796542]
[1751355288362,47.94457,2468.0,2467.9,0.69796542]
[1751355288563,92.40724767,2468.0,2467.9,0.69796542]
[1751355289061,52.39524767,2468.0,2467.9,0.69796542]
[1751355289259,92.38824767,2468.0,2467.9,0.69796542]
[1751355290257,92.38824767,2468.0,2467.9,5.42e-06]
[1751355296371,52.39524767,2468.0,2467.9,5.42e-06]
[1751355296564,92.20524767,2468.0,2467.9,5.42e-06]
[1751355297360,87.20524767,2468.0,2467.9,5.42e-06]
[1751355298759,42.94457,2468.0,2467.9,5.42e-06]
[1751355298957,87.16624767,2468.0,2467.9,5.42e-06]
[1751355299764,87.15524767,2468.0,2467.9,5.42e-06]
[1751355300062,45.02084767,2468.0,2467.9,5.42e-06]
[1751355300264,13.52017,2468.0,2467.9,5.42e-06]
[1751355300455,40.53917,2468.0,2467.9,5.42e-06]
[1751355300659,81.33917,2468.0,2467.9,5.42e-06]
[1751355300962,85.78984767,2468.0,2467.9,5.42e-06]
[1751355301364,46.06084767,2468.0,2467.9,5.42e-06]
[1751355301667,85.76784767,2468.0,2467.9,5.42e-06]
[1751355302659,46.06084767,2468.0,2467.9,5.42e-06]
[1751355303066,85.73584767,2468.0,2467.9,5.42e-06]
[1751355303266,85.73584767,2468.0,2467.9,1.50416447]
[1751355303467,85.73284767,2468.0,2467.9,1.50416447]
[1751355304668,46.06084767,2468.0,2467.9,1.50416447]
[1751355304871,85.72584767,2468.0,2467.9,1.50416447]
[1751355305275,85.72584767,2468.0,2467.9,5.42e-06]
[1751355306275,87.14854767,2468.0,2467.9,5.42e-06]
[1751355307174,47.48354767,2468.0,2467.9,5.42e-06]
[1751355307374,87.08154767,2468.0,2467.9,5.42e-06]
[1751355307875,87.06354767,2468.0,2467.9,5.42e-06]
[1751355309783,87.2396481,2468.0,2467.9,5.42e-06]
[1751355311275,84.92625905,2468.0,2467.9,5.42e-06]
[1751355311476,84.60625905,2468.0,2467.9,5.42e-06]
[1751355311666,43.03287,2468.0,2467.9,5.42e-06]
[1751355311872,42.38355905,2468.0,2467.9,5.42e-06]
[1751355312167,42.37655905,2468.0,2467.9,5.42e-06]
[1751355315673,0.81017,2468.0,2467.9,5.42e-06]
[1751355315880,42.30255905,2468.0,2467.9,5.42e-06]
[1751355317077,2.02563,2467.8,2467.4,1.20689846]
[1751355317277,6.33151905,2467.5,2467.4,1.20689846]
[1751355317481,0.81036,2467.4,2467.3,1.20689846]
[1751355317675,0.81036,2467.4,2467.3,4.06226316]
[1751355318378,27.47836,2467.4,2467.3,2.8553647]
[1751355318782,27.47836,2467.4,2467.3,4.06382898]
[1751355320183,27.47836,2467.4,2467.3,12.37310497]
[1751355321283,0.81036,2467.4,2467.3,12.37310497]
[1751355321484,30.62516,2467.4,2467.3,12.37310497]
[1751355321885,32.93854905,2467.4,2467.3,12.37310497]
[1751355322583,0.81043,2467.2,2467.1,1.60177082]
[1751355322785,0.81043,2467.2,2466.6,0.7833]
[1751355322786,0.81059,2466.7,2466.6,0.7833]
[1751355322983,32.91977905,2466.7,2466.6,0.7833]
[1751355323182,0.81066,2466.5,2466.4,2.2011]
[1751355323382,29.78004905,2466.5,2466.4,2.2011]
[1751355326282,29.78004905,2466.5,2466.4,0.8467]
[1751355326688,0.81076,2466.2,2466.1,0.81]
[1751355326989,27.41476,2466.2,2466.1,0.81]
[1751355327186,0.81076,2466.2,2466.1,5.81]
[1751355327384,27.40276,2466.2,2466.1,5.81]
[1751355327587,3.2078,2466.4,2466.1,8.12338905]
[1751355327780,26.592,2466.3,2466.1,8.93416905]
[1751355328086,27.40273,2466.3,2466.1,8.93416905]
[1751355328285,26.592,2466.3,2466.2,0.81076]
[1751355328485,27.40272,2466.3,2466.2,0.81076]
[1751355328680,27.40272,2466.3,2466.2,5.0]
[1751355328884,27.40272,2466.3,2466.1,3.12338905]
[1751355328885,0.81076,2466.2,2466.1,0.81]
[1751355329090,27.40275,2466.3,2466.1,1.62079]
[1751355329286,0.81076,2466.2,2466.1,1.62079]
[1751355329486,0.81074,2466.3,2466.2,0.81074]
[1751355329692,26.587,2466.3,2466.2,0.81076]
[1751355329986,0.81069,2466.5,2466.4,0.81067]
[1751355330186,3.2078,2466.7,2466.5,0.7829]
[1751355330187,27.37263,2466.6,2466.5,0.7829]
[1751355330588,27.37263,2466.6,2466.5,5.7829]
[1751355331388,27.37263,2466.6,2466.5,0.7829]
[1751355332594,27.37263,2466.6,2466.5,1.59356]
[1751355333191,27.37263,2466.6,2466.5,0.7829]
[1751355333391,27.37263,2466.6,2466.5,1.59356]
[1751355333594,27.37263,2466.6,2466.5,0.7829]
[1751355333995,27.37263,2466.6,2466.5,1.59356]
[1751355334194,0.81063,2466.6,2466.5,1.59356]
[1751355334395,27.30263,2466.6,2466.5,1.59356]
[1751355334589,27.30263,2466.6,2466.5,0.7829]
[1751355335696,0.81072,2466.3,2466.2,0.81076]
[1751355335898,0.81072,2466.3,2466.2,2.11059459]
[1751355336099,0.81072,2466.3,2466.2,7.11059459]
[1751355336499,0.81072,2466.3,2466.2,2.11059459]
[1751355337098,0.81072,2466.3,2466.2,1.29983459]
[1751355337902,0.81072,2466.3,2466.2,2.11059459]
[1751355338094,0.81072,2466.3,2466.2,0.81076]
[1751355338401,0.81076,2466.2,2466.1,2.54627]
[1751355338801,0.81076,2466.2,2466.1,1.7355]
[1751355338989,0.81076,2466.2,2466.1,2.54629]
[1751355343306,0.81076,2466.2,2466.1,3.8471882]
[1751355343905,0.81079,2466.1,2466.0,3.2078]
[1751355344107,0.81079,2466.1,2466.0,5.31964025]
[1751355344612,0.81079,2466.1,2466.0,4.50882025]
[1751355345208,0.81079,2466.1,2466.0,4.01862]
[1751355345409,0.81076,2466.3,2466.2,0.81072]
[1751355345615,27.21976,2466.3,2466.2,3.12410905]
[1751355345815,0.81076,2466.3,2466.2,3.12410905]
[1751355346117,0.81072,2466.4,2466.3,0.81067]
[1751355346414,3.2078,2466.7,2466.3,5.50824772]
[1751355346614,0.81059,2466.8,2466.7,0.81055]
[1751355346913,0.81059,2466.8,2466.7,2.12015]
[1751355347310,0.81059,2466.8,2466.7,1.3096]
[1751355347512,0.81063,2466.6,2466.5,0.81063]
[1751355347714,0.81063,2466.6,2466.5,2.11169597]
[1751355349009,0.81063,2466.6,2466.5,1.30106597]
[1751355349404,4.93163,2466.6,2466.5,1.30106597]
[1751355349813,0.81069,2466.4,2466.3,1.68141]
[1751355350015,0.81069,2466.4,2466.3,2.98368131]
[1751355350515,0.81069,2466.4,2466.3,2.17297131]
[1751355350812,0.81048,2467.1,2467.0,0.81048]
[1751355351009,0.81048,2467.1,2467.0,3.12386905]
[1751355351615,0.81045,2467.2,2467.1,0.81046]
[1751355352414,0.81045,2467.2,2467.1,2.11351172]
[1751355352712,0.81045,2467.2,2467.1,1.30305172]
[1751355354418,0.81045,2467.2,2467.1,2.11351172]
[1751355354615,0.81045,2467.2,2467.1,1.30305172]
[1751355355122,0.81045,2467.2,2467.1,2.11351172]
[1751355356119,0.81045,2467.2,2467.1,1.30305172]
[1751355356422,0.81046,2467.1,2467.0,0.81048]
[1751355356720,0.81046,2467.1,2467.0,2.09587641]
[1751355357219,0.81046,2467.2,2467.1,0.81043]
[1751355360529,0.81046,2467.2,2467.1,2.09531179]
[1751355360719,0.81046,2467.2,2467.1,1.28488179]
[1751355360918,0.81049,2467.0,2466.9,4.93801]
[1751355361112,0.81049,2467.0,2466.9,6.22319624]
[1751355361821,0.81049,2467.1,2467.0,0.81044]
[1751355362015,0.81049,2467.1,2467.0,2.09562624]
[1751355363319,0.81049,2467.1,2467.0,1.28518624]
[1751355363822,0.81049,2467.1,2467.0,2.09567624]
[1751355364024,0.81049,2467.1,2467.0,1.28518624]
[1751355365025,0.81049,2467.1,2467.0,2.09567624]
[1751355365325,0.81042,2467.3,2467.2,0.8104]
[1751355366423,0.81039,2467.4,2467.3,0.81036]
[1751355366627,0.81044,2467.3,2467.2,0.81041]
[1751355367825,0.81049,2467.0,2466.9,3.2078]
[1751355368025,0.81049,2467.0,2466.9,1.28495765]
[1751355368233,0.81056,2466.8,2466.7,1.70619]
[1751355368421,0.81056,2466.8,2466.7,2.99136856]
[1751355368926,4.5481,2467.2,2466.7,2.99136856]
[1751355368927,0.81053,2467.0,2466.9,0.8105]
[1751355369127,5.23388,2467.2,2467.0,0.81047]
[1751355369128,0.8105,2467.1,2467.0,0.81047]
[1751355369333,0.8105,2467.1,2467.0,2.09564856]
[1751355369524,0.8105,2467.1,2467.0,1.28517856]
[1751355370026,0.81053,2466.9,2466.8,0.81054]
[1751355370227,0.81053,2466.9,2466.8,2.0957311]
[1751355370528,0.81053,2466.9,2466.8,2.0957511]
[1751355370828,0.81053,2466.9,2466.8,1.2851911]
[1751355371731,0.81053,2466.9,2466.8,2.0957511]
[1751355372436,0.81053,2466.9,2466.8,1.2851911]
[1751355373035,3.16823,2466.9,2466.8,1.2851911]
[1751355373531,3.16823,2466.9,2466.8,2.0957511]
[1751355374032,3.16823,2466.9,2466.8,1.2851911]
[1751355377026,8.69023062,2466.9,2466.8,1.2851911]
[1751355380746,0.81066,2466.5,2466.4,2.41915319]
[1751355380933,0.81066,2466.5,2466.4,2.89837581]
[1751355381133,0.81066,2466.5,2466.4,1.28991262]
[1751355381536,0.81066,2466.5,2466.4,2.10060262]
[1751355381732,0.81066,2466.5,2466.4,1.28991262]
[1751355381939,0.81066,2466.5,2466.4,2.10060262]
[1751355382139,0.81066,2466.5,2466.4,3.41100262]
[1751355382741,0.81066,2466.5,2466.4,3.80913734]
[1751355382938,0.81066,2466.5,2466.4,4.61980734]
[1751355385644,0.81066,2466.5,2466.4,3.80913734]
[1751355386244,0.81066,2466.5,2466.4,4.61982734]
[1751355387346,0.81066,2466.5,2466.4,3.80913734]
[1751355387845,0.81066,2466.5,2466.4,2.49873734]
[1751355388254,0.81066,2466.5,2466.4,3.30942734]
[1751355388641,0.81066,2466.5,2466.4,4.72872734]
[1751355388844,0.81066,2466.6,2466.5,0.81066]
[1751355389046,0.81066,2466.6,2466.5,2.10057262]
[1751355390850,0.81063,2466.7,2466.6,0.8106]
[1751355391049,0.81063,2466.7,2466.6,2.10051262]
[1751355393851,0.81063,2466.7,2466.6,2.10054262]
[1751355402954,0.81063,2466.7,2466.6,3.43174262]
[1751355404459,0.81063,2466.7,2466.6,2.10054262]
[1751355405460,0.81063,2466.7,2466.6,3.30936734]
[1751355421864,0.81063,2466.7,2466.6,2.49873734]
[1751355422364,3.12483062,2466.7,2466.6,2.49873734]
[1751355422569,3.12483062,2466.7,2466.6,3.30936734]
[1751355422755,3.12483062,2466.7,2466.6,2.49873734]
[1751355423165,0.81066,2466.5,2466.4,1.60846319]
[1751355423466,0.81066,2466.5,2466.4,2.89900705]
[1751355423668,3.12486062,2466.5,2466.4,2.89900705]
[1751355424567,7.45926062,2466.5,2466.4,1.29054386]
[1751355424764,8.81196062,2466.5,2466.4,1.29054386]
[1751355426068,47.32696062,2466.5,2466.4,1.29054386]
[1751355428175,0.81082,2466.0,2465.9,1.21095796]
[1751355428475,3.12502062,2466.0,2465.9,1.27961483]
[1751355428870,4.25902062,2466.0,2465.9,1.27961483]
[1751355429376,5.60932062,2466.0,2465.9,1.27961483]
[1751355431274,2.4843,2466.0,2465.6,1.21095796]
[1751355431472,1.94484,2466.0,2465.8,2.31420062]
[1751355431672,3.2078,2466.4,2466.3,0.81072]
[1751355431873,3.2078,2466.4,2466.3,3.12492062]
[1751355432080,4.01849,2466.4,2466.3,2.31420062]
[1751355432376,3.2078,2466.4,2466.1,2.31420062]
[1751355432568,0.81073,2466.3,2466.2,3.42103039]
[1751355432976,0.81073,2466.3,2466.2,4.63198835]
[1751355433177,0.81073,2466.3,2466.2,3.42103039]
[1751355433573,0.81073,2466.3,2466.2,1.27700039]
[1751355433769,0.81073,2466.3,2466.2,2.08776039]
[1751355434474,0.81073,2466.3,2466.2,1.27700039]
[1751355434875,0.81073,2466.3,2466.2,2.08776039]
[1751355435074,0.81073,2466.3,2466.2,1.27700039]
[1751355435978,0.81073,2466.3,2466.2,2.08776039]
[1751355436576,0.81073,2466.3,2466.2,1.27700039]
[1751355437478,0.81073,2466.3,2466.2,2.08776039]
[1751355447290,0.81073,2466.3,2466.2,3.29871835]
[1751355449594,0.81073,2466.3,2466.2,2.08776039]
[1751355449795,16.5073,2466.7,2466.5,0.81066]
[1751355449996,17.31794,2466.7,2466.6,0.81063]
[1751355450196,43.51894,2466.7,2466.6,0.81063]
[1751355450396,4.4006,2467.0,2466.6,1.27570197]
[1751355450696,0.81058,2466.8,2466.7,0.81055]
[1751355451198,0.81063,2466.7,2466.6,0.81062]
[1751355451397,0.81063,2466.7,2466.6,2.08605731]
[1751355451895,0.81058,2466.9,2466.8,0.81053]
[1751355452095,27.00858,2466.9,2466.8,2.08596731]
[1751355453397,27.00858,2466.9,2466.8,1.27543731]
[1751355454001,28.38458,2466.9,2466.8,1.27543731]
[1751355454795,28.38458,2466.9,2466.4,4.81626319]
[1751355454796,0.81066,2466.5,2466.4,1.21095796]
[1751355455098,3.12486062,2466.5,2466.4,1.27525533]
[1751355455497,4.50086062,2466.5,2466.4,1.27525533]
[1751355455693,9.50086062,2466.5,2466.4,1.27525533]
[1751355457201,2.02677,2466.4,2465.9,0.81085]
[1751355457496,0.81079,2466.1,2466.0,1.27641239]
[1751355457696,26.98779,2466.1,2466.0,1.27641239]
[1751355457895,28.20679,2466.1,2466.0,1.27641239]
[1751355458498,28.20579,2466.1,2466.0,1.27641239]
[1751355461402,2.02979,2466.1,2466.0,1.27641239]
[1751355461604,28.19479,2466.1,2466.0,1.27641239]
[1751355463508,28.19479,2466.1,2466.0,2.08723239]
[1751355463709,28.19479,2466.1,2466.0,1.27641239]
[1751355463907,0.81086,2465.9,2465.8,1.21095796]
[1751355464106,0.81095,2465.6,2465.5,1.21095796]
[1751355464304,26.96895,2465.6,2465.5,1.21095796]
[1751355464703,26.96895,2465.6,2465.4,1.21095796]
[1751355464704,0.81099,2465.5,2465.4,1.21095796]
[1751355465206,4.50499062,2465.5,2465.4,1.21095796]
[1751355465514,0.81102,2465.4,2465.3,1.21095796]
[1751355465712,0.81105,2465.3,2465.2,1.21095796]
[1751355466210,2.16985,2465.3,2465.2,1.21095796]
[1751355467109,0.81109,2465.2,2465.1,1.21095796]
[1751355467304,26.96309,2465.2,2465.1,1.21095796]
[1751355467505,26.96309,2465.2,2464.8,5.22995796]
[1751355467506,0.81118,2465.0,2464.8,5.22995796]
[1751355467711,26.96318,2465.0,2464.8,5.22995796]
[1751355468013,0.81118,2464.9,2464.8,5.22995796]
[1751355468507,0.81118,2464.9,2464.8,4.019]
[1751355469711,26.147,2465.3,2465.0,0.81112]
[1751355469910,0.81114,2465.1,2465.0,0.81112]
[1751355470612,0.8111,2465.2,2465.1,0.81107]
[1751355470808,5.47025062,2465.5,2465.0,2.31420062]
[1751355470809,26.143,2465.3,2465.0,2.31420062]
[1751355471003,0.81111,2465.2,2465.1,3.31419]
[1751355472115,0.81105,2465.4,2465.3,0.81102]
[1751355472510,0.81101,2465.5,2465.4,0.81098]
[1751355473110,0.81093,2465.8,2465.7,0.8109]
[1751355473306,0.81095,2465.7,2465.6,0.81093]
[1751355476315,5.162,2465.9,2465.8,0.81089]
[1751355476607,31.289,2465.9,2465.8,0.81089]
[1751355476806,4.0187,2465.9,2465.8,0.81089]
[1751355477408,0.81089,2465.8,2465.7,2.03671]
[1751355479318,0.81089,2465.8,2465.7,1.2258]
[1751355479319,3.12509062,2465.8,2465.7,1.2258]
[1751355479514,0.81095,2465.6,2465.5,0.81096]
[1751355479817,0.81099,2465.5,2465.4,3.2078]
[1751355480012,0.81099,2465.5,2465.4,4.46509795]
[1751355480319,3.25029,2465.5,2465.4,3.2078]
[1751355480513,0.81099,2465.5,2465.4,3.2078]
[1751355480817,0.81099,2465.5,2465.4,4.01882]
[1751355482419,3.12519062,2465.5,2465.4,4.46610853]
[1751355482719,3.12519062,2465.5,2465.4,1.25830853]
[1751355482912,0.81112,2465.1,2465.0,4.01895]
[1751355483112,0.81112,2465.1,2465.0,5.27771956]
[1751355483314,0.81112,2465.1,2465.0,4.46656956]
[1751355483714,0.81112,2465.1,2465.0,5.27771956]
[1751355484014,0.81112,2465.1,2465.0,4.46656956]
[1751355484516,0.81112,2465.1,2465.0,1.25876956]
[1751355485013,0.81119,2464.9,2464.6,7.60076796]
[1751355485219,0.81119,2464.9,2464.8,0.81119]
[1751355485518,0.81119,2464.9,2464.8,2.07162556]
[1751355486719,0.81119,2464.9,2464.8,1.26043556]
[1751355491815,2.21739,2464.9,2464.8,1.26043556]
[1751355493522,0.81125,2464.7,2464.6,3.2078]
[1751355493722,0.81125,2464.7,2464.6,4.4684577]
[1751355494125,0.81125,2464.7,2464.6,5.2797377]
[1751355494625,0.81125,2464.7,2464.6,2.0719377]
[1751355495728,0.81125,2464.7,2464.6,1.2606577]
[1751355497025,0.81125,2464.7,2464.6,2.0719377]
[1751355497325,0.81125,2464.7,2464.6,1.2606577]
[1751355498125,0.81125,2464.7,2464.6,2.0719377]
[1751355498625,0.81125,2464.7,2464.6,1.2606577]
[1751355499125,0.81125,2464.7,2464.6,2.0719377]
[1751355501828,0.81125,2464.7,2464.6,0.81128]
[1751355502528,0.81128,2464.6,2464.5,1.1115]
[1751355502726,0.81128,2464.6,2464.5,3.18242099]
[1751355503723,3.12548062,2464.6,2464.5,2.37110099]
[1751355503922,3.12548062,2464.6,2464.5,3.18242099]
[1751355504531,0.81135,2464.5,2464.3,3.2078]
[1751355504726,0.81135,2464.4,2464.3,4.01915]
[1751355505024,0.81132,2464.6,2464.5,0.81128]
[1751355505326,1.1093,2464.7,2464.5,0.81128]
[1751355505327,0.81128,2464.7,2464.6,0.81128]
[1751355506323,0.81128,2464.7,2464.6,2.07291188]
[1751355507128,3.12548062,2464.7,2464.6,2.07291188]
[1751355507430,3.12548062,2464.7,2464.6,2.07339969]
[1751355507626,0.81128,2464.7,2464.6,2.07339969]
[1751355507829,0.81125,2464.8,2464.7,0.81125]
[1751355508331,0.81125,2464.8,2464.7,2.07362521]
[1751355508827,1.199,2464.9,2464.7,1.26237521]
[1751355509028,0.81125,2464.8,2464.7,0.81122]
[1751355509227,0.81125,2464.8,2464.7,1.26235162]
[1751355509731,0.81125,2464.8,2464.7,2.07360162]
[1751355510332,26.031,2464.9,2464.8,0.81122]
[1751355510531,0.81118,2464.9,2464.8,0.81122]
[1751355510925,3.2078,2465.1,2464.7,3.40839]
[1751355511231,0.81115,2465.1,2465.0,0.81112]
[1751355511933,0.81118,2465.0,2464.9,0.81116]
[1751355512231,3.12538062,2465.0,2464.9,2.07468126]
[1751355512932,3.12538062,2465.0,2464.9,0.81116]
[1751355513335,3.12538062,2465.0,2464.9,2.07598033]
[1751355513632,0.81125,2464.8,2464.7,0.8112]
[1751355513934,3.12545062,2464.8,2464.7,2.07601991]
[1751355515533,1.4069,2465.2,2464.8,2.02805]
[1751355515740,0.81114,2465.1,2465.0,0.81112]
[1751355516031,0.81122,2464.8,2464.7,1.21095796]
[1751355516230,3.12542062,2464.8,2464.7,2.07625272]
[1751355517036,2.31420062,2464.8,2464.7,2.07625272]
[1751355517239,0.81121,2464.9,2464.8,0.81122]
[1751355517540,0.81121,2464.9,2464.8,2.07624272]
[1751355518636,0.81118,2465.0,2464.9,0.81115]
[1751355518836,0.81118,2465.0,2464.9,2.07617272]
[1751355520137,0.81118,2465.0,2464.9,3.28713068]
[1751355521135,0.81118,2465.0,2464.9,2.07617272]
[1751355522537,0.81118,2465.0,2464.9,1.26502272]
[1751355522738,2.18638,2465.0,2464.9,1.26502272]
[1751355524442,2.18638,2465.0,2464.9,2.07620272]
[1751355526050,0.81122,2464.8,2464.7,1.60846319]
[1751355526246,0.81122,2464.8,2464.4,2.41978319]
[1751355526247,30.32226062,2464.8,2464.4,2.41978319]
[1751355526441,2.31420062,2464.6,2464.5,0.81131]
[1751355526748,0.81132,2464.5,2464.4,2.41978319]
[1751355527148,3.12550062,2464.6,2464.5,0.81132]
[1751355527447,0.81128,2464.6,2464.5,0.81129]
[1751355527947,0.81124,2464.8,2464.7,0.81125]
[1751355528244,2.0369,2464.9,2464.7,1.61550959]
[1751355528453,29.98898,2465.0,2464.9,0.81118]
[1751355529849,0.81118,2464.9,2464.8,1.9474]
[1751355530055,0.81118,2464.9,2464.8,0.8112]
[1751355530554,0.81122,2464.8,2464.7,2.42673959]
[1751355530856,0.81122,2464.8,2464.7,0.81123]
[1751355531549,0.81122,2464.9,2464.8,0.81118]
[1751355534759,0.81118,2464.9,2464.8,0.81118]
[1751355537158,1.1079,2465.0,2464.9,0.81118]
[1751355537464,26.75314,2465.1,2465.0,0.81115]
[1751355537760,0.81118,2465.0,2464.9,0.81115]
[1751355538161,3.12538062,2465.0,2464.9,2.05258643]
[1751355538667,3.12538062,2465.0,2464.9,1.24143643]
[1751355538858,4.52548062,2465.0,2464.9,1.24143643]
[1751355539160,4.52548062,2465.0,2464.9,2.05261643]
[1751355540962,4.52548062,2465.0,2464.9,1.24143643]
[1751355541363,4.52548062,2465.0,2464.9,2.05261643]
[1751355542164,4.52548062,2465.0,2464.9,1.24143643]
[1751355543066,4.52548062,2465.0,2464.9,2.05261643]
[1751355544262,1.2167,2465.3,2465.2,0.81109]
[1751355544457,16.4637,2465.7,2465.5,0.81099]
[1751355544657,4.366,2465.7,2465.3,0.81102]
[1751355544856,0.81102,2465.5,2465.4,1.23813041]
[1751355545063,0.81102,2465.5,2465.4,2.0491154]
[1751355546065,0.81102,2465.5,2465.4,1.2381254]
[1751355546966,4.366,2465.7,2465.6,0.81095]
[1751355547163,3.2078,2465.7,2465.6,2.04792886]
[1751355547362,0.81088,2465.9,2465.8,0.81086]
[1751355548360,0.81092,2465.8,2465.7,0.81089]
[1751355548562,3.12512062,2465.8,2465.7,0.81089]
[1751355550468,0.81092,2465.7,2465.6,1.1279]
[1751355550674,0.81095,2465.6,2465.5,1.97176]
[1751355550867,3.12515062,2465.6,2465.5,3.2068166]
[1751355551067,0.81093,2465.7,2465.6,0.81095]
[1751355551274,0.81093,2465.7,2465.6,2.0460066]
[1751355551576,0.81092,2465.8,2465.7,0.81092]
[1751355551874,29.01607062,2465.9,2465.8,0.81089]
[1751355552675,3.12507062,2465.9,2465.8,0.81089]
[1751355553577,0.81092,2465.8,2465.7,0.8109]
[1751355554470,0.8109,2465.9,2465.8,0.81086]
[1751355554972,3.12510062,2465.9,2465.8,0.81086]
[1751355556076,0.81092,2465.8,2465.7,0.81091]
[1751355556976,0.81087,2465.9,2465.8,0.81086]
[1751355557476,27.83955,2466.0,2465.9,0.81086]
[1751355557675,1.96855,2466.0,2465.9,0.81086]
[1751355558174,0.81086,2465.9,2465.8,1.97906]
[1751355558371,0.81086,2465.9,2465.8,0.81086]
[1751355559176,1.1577,2466.0,2465.9,0.81086]
[1751355559374,1.96852,2466.0,2465.9,0.81086]
[1751355560770,0.81089,2465.9,2465.8,0.81086]
[1751355560973,3.12509062,2465.9,2465.8,0.81086]
[1751355561872,3.12509062,2465.9,2465.6,3.2078]
[1751355562073,3.12513062,2465.7,2465.6,0.81095]
[1751355562369,3.12513062,2465.7,2465.6,2.0441829]
[1751355562564,0.81095,2465.6,2465.5,1.1608]
[1751355562767,0.81095,2465.6,2465.5,2.39420478]
[1751355563277,0.81095,2465.6,2465.5,3.20517478]
[1751355563466,2.00785,2465.6,2465.5,2.39420478]
[1751355563667,2.00785,2465.6,2465.5,1.23340478]
[1751355564472,0.81086,2466.0,2465.9,0.81082]
[1751355565179,3.12506062,2466.0,2465.9,0.81082]
[1751355567978,3.12506062,2466.0,2465.7,4.30078]